bitfinex/quotes_ETHUSD_20251108
["timestamp","ask_amount","ask_price","bid_price","bid_amount"]
[1762603220868,0.469,3417.6,3416.7,2.92676092]
[1762603221074,0.469,3417.6,3417.0,2.9265344]
[1762603221548,0.469,3417.6,3416.8,2.92671505]
[1762603221749,0.87955002,3417.9,3417.5,2.92611558]
[1762603221955,1.34855002,3417.9,3417.5,2.92611558]
[1762603222196,0.3266,3417.6,3416.1,0.1863]
[1762603222341,0.4676,3417.8,3416.9,2.92659291]
[1762603222342,1.08223365,3417.8,3416.9,2.92659291]
[1762603222538,1.259712,3417.6,3416.7,2.92680026]
[1762603222744,0.469,3417.7,3416.7,2.92672549]
[1762603222745,0.84896822,3417.5,3416.7,2.92672549]
[1762603222978,0.23433457,3417.5,3416.7,2.92672549]
[1762603223177,0.469,3417.4,3416.7,2.92672549]
[1762603223370,0.469,3417.4,3416.8,2.9267056]
[1762603223680,0.469,3417.4,3416.7,2.92676737]
[1762603223848,0.3266,3416.8,3416.2,0.4636]
[1762603224043,0.1456,3416.4,3416.3,2.9271434]
[1762603224555,0.1456,3416.4,3416.3,3.3875434]
[1762603225158,0.1456,3416.4,3416.3,2.9271434]
[1762603225361,0.4722,3416.4,3416.1,0.006]
[1762603225547,0.3266,3416.2,3416.1,2.93326483]
[1762603226259,0.3266,3416.2,3416.1,0.006]
[1762603226702,0.3266,3416.2,3416.1,2.93331477]
[1762603227473,0.7942,3416.2,3416.1,0.006]
[1762603227999,0.7942,3416.2,3416.1,2.93331477]
[1762603228000,0.3266,3416.2,3416.1,2.93331477]
[1762603228973,0.4636,3416.6,3416.5,2.92697204]
[1762603229187,0.4636,3416.6,3416.2,2.92718401]
[1762603229188,0.469,3416.6,3416.2,2.92718401]
[1762603229346,0.3266,3416.2,3416.1,2.93331162]
[1762603230947,0.7942,3416.2,3416.1,0.006]
[1762603231180,0.7956,3416.2,3416.1,0.006]
[1762603231381,0.3266,3416.2,3416.1,0.006]
[1762603231584,0.7942,3416.2,3416.1,0.006]
[1762603232189,1.01132249,3416.2,3416.1,0.006]
[1762603232551,0.7942,3416.2,3416.1,0.006]
[1762603232964,0.11731288,3416.3,3416.1,0.006]
[1762603233192,0.11731288,3416.3,3416.2,2.92722908]
[1762603233492,1.29886119,3416.9,3416.5,2.92691757]
[1762603233656,0.4676,3416.6,3416.5,2.92691757]
[1762603234288,0.199,3416.9,3416.5,2.92691757]
[1762603234289,0.6846,3416.8,3416.5,2.92691757]
[1762603234467,0.88295547,3416.8,3416.6,2.92682929]
[1762603234668,0.88295547,3416.8,3416.5,2.92689303]
[1762603234988,1.36855547,3416.8,3416.5,2.92689303]
[1762603235188,0.3102,3416.6,3416.5,2.92689303]
[1762603235388,0.3102,3416.6,3416.1,0.006]
[1762603235691,0.65330555,3416.5,3416.1,0.006]
[1762603235883,0.16770555,3416.5,3416.2,2.92715146]
[1762603236090,0.4856,3416.5,3416.2,2.92715146]
[1762603236396,0.3102,3416.3,3416.2,2.92715146]
[1762603236783,0.7941,3416.3,3416.2,2.92715146]
[1762603237095,0.7941,3416.3,3416.1,0.006]
[1762603237270,0.3102,3416.2,3416.1,0.006]
[1762603237468,0.3102,3416.2,3416.1,2.93331477]
[1762603237668,0.6846,3416.8,3416.4,2.92698241]
[1762603237881,0.6846,3416.8,3416.2,2.92722908]
[1762603237882,0.6846,3416.8,3416.6,2.92681892]
[1762603238083,0.1456,3416.6,3416.5,2.92693606]
[1762603238273,0.6846,3416.8,3416.5,2.92693606]
[1762603238469,1.1702,3416.8,3416.6,2.92687384]
[1762603238804,0.1456,3416.3,3416.2,2.92715692]
[1762603239091,1.1702,3416.8,3416.1,0.006]
[1762603239092,1.1702,3416.8,3416.5,2.92689206]
[1762603239283,1.1702,3416.8,3416.6,2.92686757]
[1762603239480,0.199,3416.9,3416.7,2.92671982]
[1762603239682,0.1456,3416.2,3416.1,3.60027794]
[1762603240195,0.1456,3416.2,3416.1,4.06177794]
[1762603240895,0.1456,3416.2,3416.1,5.06826016]
[1762603241193,0.1456,3416.2,3416.1,5.05355045]
[1762603241397,0.002,3417.1,3416.1,5.05355045]
[1762603241398,0.002,3417.1,3417.0,2.92654375]
[1762603241602,0.002,3417.1,3416.2,0.4815]
[1762603241756,0.002,3417.1,3416.1,1.64477251]
[1762603241757,0.1456,3416.4,3416.3,2.9271434]
[1762603241956,0.4856,3417.0,3416.4,2.9269928]
[1762603242157,0.002,3417.1,3416.2,3.40872908]
[1762603242395,0.31549196,3417.1,3416.8,2.92663871]
[1762603242601,0.80109196,3417.1,3416.8,2.92663871]
[1762603242892,0.3209,3416.9,3416.8,2.92663871]
[1762603243094,0.3209,3416.9,3416.7,2.92677114]
[1762603243297,0.9838,3416.9,3416.1,0.1915]
[1762603243600,0.61714829,3416.8,3416.4,2.92705696]
[1762603243798,1.08984829,3416.8,3416.4,2.92705696]
[1762603243965,1.08984829,3416.8,3416.5,2.9269256]
[1762603244181,0.38172226,3416.9,3416.1,3.11501084]
[1762603244415,0.38172226,3416.9,3416.1,3.61121084]
[1762603244416,0.61719608,3416.9,3416.1,3.61121084]
[1762603244616,0.8797899,3417.0,3416.7,2.92680053]
[1762603244816,0.8797899,3417.0,3416.5,2.92690739]
[1762603244817,0.002,3417.1,3416.8,2.92671036]
[1762603245326,0.3317,3416.9,3416.8,2.92671036]
[1762603245477,0.002,3417.1,3417.0,2.92654375]
[1762603245678,0.002,3417.1,3417.0,3.38384375]
[1762603246280,0.002,3417.1,3417.0,4.56218825]
[1762603247484,0.002,3417.1,3417.0,4.06598825]
[1762603247713,0.002,3417.1,3417.0,4.56218825]
[1762603247915,0.002,3417.1,3417.0,4.06598825]
[1762603248224,0.002,3417.1,3416.9,2.92657648]
[1762603248389,0.3337,3417.1,3416.3,0.901704]
[1762603248585,0.3337,3417.1,3417.0,2.92654375]
[1762603249133,0.3337,3417.1,3416.9,2.92660824]
[1762603249624,0.3317,3417.0,3416.3,0.4962]
[1762603249788,0.3317,3417.0,3416.8,2.9267127]
[1762603249984,0.002,3417.1,3416.3,2.11702088]
[1762603250206,0.002,3417.1,3416.8,2.92670924]
[1762603250604,0.4747,3417.1,3416.8,2.92670924]
[1762603250811,0.4747,3417.1,3416.9,2.92662253]
[1762603251333,0.3317,3417.0,3416.9,2.92662253]
[1762603251492,0.3317,3417.0,3416.8,2.92669006]
[1762603252127,0.4747,3417.1,3416.2,2.92717593]
[1762603252128,0.1456,3416.8,3416.7,2.92679612]
[1762603252342,0.9946,3416.9,3416.7,2.92679612]
[1762603252498,0.9946,3416.9,3416.5,2.92689978]
[1762603252499,0.1456,3416.7,3416.1,0.1877]
[1762603252828,0.1456,3416.3,3416.2,2.92722908]
[1762603253327,0.1456,3416.3,3416.2,3.38452908]
[1762603253935,0.6001,3416.3,3416.2,2.92722908]
[1762603254805,0.599,3416.3,3416.1,0.006]
[1762603255119,0.599,3416.3,3416.2,2.92722908]
[1762603255120,0.1456,3416.3,3416.2,2.92722908]
[1762603257969,0.803,3416.3,3416.1,0.006]
[1762603258257,0.3331,3416.2,3416.1,0.006]
[1762603258463,0.803,3416.2,3416.1,0.006]
[1762603258785,0.11731873,3416.4,3416.1,2.93329228]
[1762603258990,0.11731873,3416.4,3416.3,2.9271434]
[1762603259274,0.11731873,3416.4,3416.1,2.93329228]
[1762603259275,0.4727,3416.8,3416.2,2.92719693]
[1762603259424,1.08910191,3416.8,3416.4,2.92701444]
[1762603259620,0.61640428,3416.7,3416.6,2.92688637]
[1762603259845,0.77367698,3417.0,3416.9,2.9266294]
[1762603259846,0.002,3417.0,3416.9,2.9266294]
[1762603261125,0.002,3417.0,3416.4,0.4962]
[1762603261126,0.3337,3417.0,3416.4,0.4962]
[1762603261347,0.3337,3417.0,3416.9,2.9266294]
[1762603261662,0.002,3417.0,3416.9,3.3851294]
[1762603262036,0.002,3417.0,3416.8,2.92668739]
[1762603262237,0.0034,3416.8,3416.1,2.93328784]
[1762603262462,0.0034,3416.8,3416.1,0.006]
[1762603262463,0.013,3416.2,3416.1,0.006]
[1762603262870,0.4709,3416.2,3416.1,0.006]
[1762603263612,0.013,3416.2,3416.1,0.006]
[1762603264942,0.61651773,3416.7,3416.2,2.92717527]
[1762603265217,0.61651773,3416.7,3416.1,0.4645]
[1762603265218,0.20319947,3416.7,3416.3,2.92708022]
[1762603265415,0.20319947,3416.7,3416.1,3.5777721]
[1762603265416,0.4612,3416.2,3416.1,0.006]
[1762603265984,0.8104,3416.2,3416.1,0.006]
[1762603267749,2.070112,3416.2,3416.1,0.006]
[1762603267956,2.96311193,3416.2,3416.1,0.006]
[1762603268442,3.45114695,3416.2,3416.1,0.006]
[1762603268624,2.68662973,3416.2,3416.1,0.006]
[1762603268994,3.45830671,3416.2,3416.1,0.006]
[1762603269200,6.05595317,3416.2,3416.1,0.006]
[1762603269400,0.405504,3415.8,3415.7,0.001]
[1762603269698,0.405504,3415.8,3415.4,0.001]
[1762603269699,4.59304501,3415.5,3415.4,0.001]
[1762603269894,4.59304501,3415.5,3414.3,0.001]
[1762603269895,3.3335902,3415.2,3414.3,0.001]
[1762603270096,4.29360793,3415.2,3414.3,0.001]
[1762603270294,4.75150793,3415.2,3414.3,0.001]
[1762603270548,2.90181229,3415.2,3414.3,0.001]
[1762603270707,1.41791773,3415.2,3414.3,0.001]
[1762603271138,0.8014,3415.2,3414.4,2.92874466]
[1762603271298,0.61651773,3415.3,3414.6,2.92959043]
[1762603271632,1.07441773,3415.5,3414.8,2.92840085]
[1762603271843,0.4579,3415.5,3414.6,0.001]
[1762603272147,0.91528804,3415.8,3415.1,2.93315101]
[1762603272148,0.61451854,3415.7,3415.1,2.93315101]
[1762603272351,0.21716066,3415.6,3415.1,0.005]
[1762603272529,1.18979683,3415.8,3415.1,2.933159]
[1762603272833,1.07241854,3415.7,3415.1,2.933159]
[1762603273037,0.4579,3415.7,3415.1,0.005]
[1762603273352,0.11737829,3415.8,3415.1,0.005]
[1762603273639,1.259712,3416.3,3415.1,0.005]
[1762603273640,1.25603024,3416.1,3415.4,2.92784484]
[1762603273861,0.61423024,3416.0,3415.5,2.92782511]
[1762603273996,0.61423024,3416.0,3415.4,2.92791473]
[1762603274197,0.61423024,3416.0,3415.2,0.4969]
[1762603274526,0.6418,3416.1,3415.7,2.92760473]
[1762603274838,0.6418,3416.1,3415.8,2.92748703]
[1762603274839,0.1839,3416.1,3415.8,2.92748703]
[1762603275136,0.4579,3416.2,3415.4,2.92790315]
[1762603275339,0.3528,3415.9,3415.1,0.6879]
[1762603275500,0.3528,3415.9,3415.2,0.85861837]
[1762603275705,0.3528,3415.9,3415.1,3.1191682]
[1762603275706,0.03659464,3415.8,3415.1,3.1191682]
[1762603275905,0.4579,3415.8,3415.1,2.9331682]
[1762603276101,0.4579,3415.8,3415.1,0.005]
[1762603276332,0.4579,3415.8,3415.6,0.001]
[1762603276703,0.3528,3415.7,3415.6,0.001]
[1762603276899,0.1839,3416.2,3415.6,0.001]
[1762603277104,0.1859,3416.2,3415.6,0.001]
[1762603277400,0.6438,3416.2,3415.7,2.92759945]
[1762603278002,0.002,3416.2,3415.7,3.42455758]
[1762603278341,0.002,3416.2,3415.9,2.92742325]
[1762603278549,0.002,3416.2,3415.8,2.92756484]
[1762603278730,0.002,3416.2,3416.1,0.4585]
[1762603278902,0.002,3416.2,3416.1,3.38581477]
[1762603279267,0.002,3416.2,3415.8,0.4969]
[1762603279268,0.1456,3416.1,3415.6,0.001]
[1762603279550,0.002,3416.2,3416.1,3.38581477]
[1762603280128,0.002,3416.2,3415.7,0.4969]
[1762603280328,0.8117,3416.2,3415.6,2.92872843]
[1762603280503,0.002,3416.2,3415.6,0.001]
[1762603280705,0.002,3416.2,3416.1,2.92731477]
[1762603281806,0.002,3416.2,3416.1,3.57181477]
[1762603282816,0.002,3416.2,3416.1,0.6445]
[1762603283005,0.1456,3416.1,3415.6,0.001]
[1762603283204,0.1456,3415.8,3415.7,2.92765758]
[1762603283647,0.1456,3415.8,3415.7,3.38615758]
[1762603283837,0.1456,3415.8,3415.7,3.88305758]
[1762603287152,0.3528,3415.8,3415.6,0.001]
[1762603287309,0.1839,3416.1,3415.6,0.001]
[1762603287505,0.1839,3416.1,3415.6,2.92873221]
[1762603287749,0.4579,3416.0,3415.6,2.92873221]
[1762603289439,0.002,3416.2,3415.7,2.92765758]
[1762603289748,0.002,3416.2,3415.6,2.92872792]
[1762603289947,0.4599,3416.2,3415.7,2.92761974]
[1762603290348,0.4599,3416.2,3415.6,2.92867123]
[1762603290567,0.18433932,3416.1,3415.6,0.001]
[1762603291165,0.3528,3415.7,3415.6,0.001]
[1762603291532,1.07176371,3416.0,3415.6,0.001]
[1762603291832,0.61486371,3415.9,3415.6,2.92869192]
[1762603292055,0.489,3416.0,3415.6,2.92869192]
[1762603292469,0.61286372,3416.1,3415.6,0.001]
[1762603292639,0.002,3416.2,3416.1,2.92731477]
[1762603292831,0.002,3416.2,3416.1,3.60051477]
[1762603294134,0.002,3416.2,3416.1,4.07411477]
[1762603294973,0.002,3416.2,3416.1,3.60051477]
[1762603295574,0.002,3416.2,3416.1,3.40831477]
[1762603297486,0.002,3416.2,3416.1,3.88191477]
[1762603297695,0.002,3416.2,3416.1,4.596776]
[1762603298656,0.002,3416.2,3416.1,4.58206629]
[1762603298982,0.002,3416.2,3416.1,5.13317029]
[1762603300247,0.002,3416.2,3416.1,6.39288229]
[1762603300684,0.002,3416.9,3416.8,2.92671505]
[1762603300887,0.002,3416.9,3416.8,3.9930673]
[1762603301186,0.002,3416.9,3416.8,4.4666673]
[1762603301384,0.002,3417.0,3416.9,2.9266294]
[1762603301385,1e-08,3417.0,3416.9,2.9266294]
[1762603301592,1e-08,3417.0,3416.9,3.8812294]
[1762603302186,1e-08,3417.0,3416.9,5.1409414]
[1762603302350,1e-08,3417.0,3416.9,5.47582488]
[1762603302552,1e-08,3417.0,3416.9,5.88132888]
[1762603302784,1e-08,3417.0,3416.9,6.02692888]
[1762603309399,1e-08,3417.0,3416.9,5.47582488]
[1762603311217,1e-08,3417.0,3416.9,6.02692888]
[1762603313986,0.002,3417.7,3417.6,2.92602996]
[1762603314286,0.002,3417.7,3417.6,8.37239497]
[1762603314493,0.002,3417.7,3417.6,8.82759497]
[1762603315227,0.002,3417.7,3417.6,8.37239497]
[1762603315424,0.002,3417.7,3417.6,3.40292996]
[1762603315672,0.002,3417.7,3417.6,8.03210197]
[1762603316925,0.002,3417.7,3417.6,7.55520197]
[1762603317503,0.002,3417.7,3417.6,8.03210197]
[1762603317802,0.002,3417.7,3417.6,9.18745349]
[1762603318206,0.002,3417.7,3417.6,8.73225349]
[1762603318519,0.002,3417.7,3417.6,9.18745349]
[1762603318934,0.002,3417.7,3417.6,8.73225349]
[1762603319540,0.002,3417.7,3417.6,9.18745349]
[1762603320187,0.002,3417.7,3417.6,15.0763375]
[1762603320335,0.002,3417.7,3417.6,10.85266949]
[1762603321236,0.002,3417.7,3417.6,15.4818415]
[1762603321897,0.4559,3417.7,3417.5,3.79]
[1762603322172,0.3547,3417.5,3417.4,2.9262012]
[1762603322583,0.3567,3417.7,3417.6,2.92602996]
[1762603322739,0.002,3417.7,3417.6,2.92602996]
[1762603322934,0.8096,3417.7,3417.6,2.92602996]
[1762603323394,0.8096,3417.7,3417.0,2.92648573]
[1762603323695,0.4576,3417.6,3416.7,2.92680071]
[1762603323973,0.4576,3417.6,3416.9,2.9266294]
[1762603323974,0.351,3417.0,3416.9,2.9266294]
[1762603324138,0.1456,3417.0,3416.9,2.9266294]
[1762603324341,0.1456,3417.0,3416.9,3.4147294]
[1762603324576,0.4966,3417.0,3416.4,0.1456]
[1762603324750,0.546,3416.9,3416.7,2.92680071]
[1762603324959,0.546,3416.9,3416.8,2.92671505]
[1762603325165,0.9963,3416.9,3416.8,2.92671505]
[1762603325576,0.9963,3416.9,3416.7,2.92674668]
[1762603325779,0.546,3416.9,3416.8,2.92671505]
[1762603325936,0.9963,3416.9,3416.2,2.92717504]
[1762603326137,0.4504,3416.3,3416.0,0.001]
[1762603326361,0.61600891,3416.8,3416.0,0.001]
[1762603326362,0.4503,3416.1,3416.0,2.92838492]
[1762603326565,0.4503,3416.1,3416.0,0.001]
[1762603326872,0.9079,3416.1,3416.0,2.92840046]
[1762603329344,0.9079,3416.1,3416.0,0.001]
[1762603329542,0.9079,3416.1,3416.0,2.92840046]
[1762603330075,0.9079,3416.1,3416.0,0.001]
[1762603330941,0.61548495,3416.6,3416.3,2.9271434]
[1762603331146,0.4576,3416.7,3416.6,2.92688637]
[1762603331443,0.0884,3416.9,3416.6,2.92688637]
[1762603331444,0.0884,3416.9,3416.8,2.92671505]
[1762603331642,0.4596,3417.0,3416.8,2.92671505]
[1762603331643,0.002,3417.0,3416.9,2.9266294]
[1762603331873,0.002,3417.0,3416.9,3.42942198]
[1762603332177,0.002,3417.0,3416.9,2.9266294]
[1762603332986,0.3501,3417.0,3416.9,2.9266294]
[1762603333149,0.8066,3417.0,3416.9,2.9266294]
[1762603333662,0.3501,3417.0,3416.9,2.9266294]
[1762603334644,0.1456,3416.9,3416.8,2.92671505]
[1762603334846,0.3418,3416.9,3416.8,2.92671505]
[1762603335082,0.7994,3416.9,3416.8,2.92671505]
[1762603335281,0.3418,3416.9,3416.8,2.92671505]
[1762603335576,0.7994,3416.9,3416.8,2.92671505]
[1762603335894,0.7994,3416.9,3416.2,2.92722908]
[1762603335895,0.7994,3416.9,3416.1,0.1963]
[1762603336057,0.7994,3416.9,3416.0,0.001]
[1762603336058,0.4576,3416.8,3416.0,0.001]
[1762603336379,0.1456,3416.2,3416.1,4.18702677]
[1762603336678,0.1456,3416.2,3416.1,4.38332677]
[1762603336877,0.1456,3416.2,3416.1,4.87142677]
[1762603338568,0.1456,3416.2,3416.1,5.34582677]
[1762603339346,0.1456,3416.2,3416.1,6.46599055]
[1762603339587,0.002,3417.0,3416.9,2.9266294]
[1762603340195,0.6151,3417.0,3415.3,5.84901304]
[1762603340406,0.1569,3416.1,3415.6,0.4754]
[1762603340550,0.1569,3416.1,3416.0,2.92840046]
[1762603340747,0.6131,3416.1,3416.0,0.001]
[1762603341051,0.1569,3416.1,3416.0,2.92840046]
[1762603341890,0.4562,3416.5,3416.4,2.92705772]
[1762603342303,0.6161,3416.5,3416.4,2.92705772]
[1762603342607,0.1916,3416.9,3416.0,0.001]
[1762603342608,0.6448,3416.9,3416.6,2.92682607]
[1762603342907,0.4539,3416.7,3416.6,2.92682607]
[1762603343399,0.616,3416.7,3416.6,2.92682607]
[1762603343909,0.616,3416.7,3416.0,0.001]
[1762603344071,0.4539,3416.1,3416.0,2.92839401]
[1762603344493,0.4576,3416.6,3416.4,2.9270465]
[1762603345017,0.1585,3416.5,3416.4,2.9270465]
[1762603345421,0.6131,3416.5,3416.4,2.9270465]
[1762603345980,0.1585,3416.5,3416.4,2.9270465]
[1762603346184,0.6131,3416.5,3416.4,2.9280465]
[1762603346918,0.1585,3416.5,3416.4,2.9280465]
[1762603347098,0.6131,3416.5,3416.4,0.001]
[1762603347914,0.6131,3416.5,3416.4,2.92805772]
[1762603348315,0.1585,3416.5,3416.4,2.92805772]
[1762603348617,0.1936,3416.9,3416.8,2.92671505]
[1762603348820,0.8067,3416.9,3416.8,2.92671505]
[1762603350787,0.1634,3416.9,3416.8,2.92671505]
[1762603351411,0.002,3416.9,3416.8,2.92671505]
[1762603351612,0.002,3416.9,3416.8,3.42001505]
[1762603353420,0.002,3416.9,3416.8,4.56674736]
[1762603353729,0.8067,3416.9,3416.8,2.92671505]
[1762603353909,0.1552,3416.9,3416.8,2.92671505]
[1762603354444,0.8093,3416.9,3416.8,2.92671505]
[1762603354744,0.3523,3416.9,3416.8,2.92671505]
[1762603354899,0.8067,3416.9,3416.8,2.92671505]
[1762603356108,0.002,3416.9,3416.8,2.92671505]
[1762603356632,0.1552,3416.9,3416.8,2.92671505]
[1762603358731,0.002,3416.9,3416.8,2.92671505]
[1762603358931,0.002,3416.9,3416.8,3.42001505]
[1762603359231,0.002,3416.9,3416.8,4.05616673]
[1762603359555,0.002,3416.9,3416.8,4.52166673]
[1762603360433,0.002,3416.9,3416.8,4.05616673]
[1762603361925,0.002,3416.9,3416.8,4.52166673]
[1762603363880,0.1476,3416.9,3416.8,4.52166673]
[1762603369081,0.1476,3416.9,3416.8,4.53636145]
[1762603369267,0.002,3416.9,3416.8,4.52166673]
[1762603369988,0.7991,3416.9,3416.8,2.92671505]
[1762603370156,0.3226,3416.9,3416.8,2.92671505]
[1762603370363,0.8026,3416.9,3416.8,2.92671505]
[1762603372886,0.8026,3416.9,3416.4,0.001]
[1762603373187,0.1292,3416.5,3416.4,0.001]
[1762603373550,0.6092,3416.5,3416.4,0.001]
[1762603373756,0.6092,3416.5,3416.4,2.92805772]
[1762603373972,0.6092,3416.5,3416.4,0.001]
[1762603374153,0.6092,3416.5,3416.4,2.92805772]
[1762603374348,0.6092,3416.5,3416.4,0.001]
[1762603375588,0.6092,3416.5,3416.4,2.92805772]
[1762603378923,0.1292,3416.5,3416.4,2.92805772]
[1762603379125,0.48,3416.8,3416.7,2.92680071]
[1762603379523,0.6177,3416.8,3416.7,2.92680071]
[1762603380023,0.1456,3416.7,3416.4,0.001]
[1762603380342,0.2833,3416.5,3416.4,2.92800714]
[1762603380641,0.2833,3416.5,3416.4,2.92805772]
[1762603380921,0.7599,3416.5,3416.4,2.92805772]
[1762603381799,0.2833,3416.5,3416.4,2.92805772]
[1762603382004,0.614,3416.5,3416.4,0.001]
[1762603382193,0.614,3416.5,3416.0,0.001]
[1762603382194,0.77981799,3416.4,3416.0,0.001]
[1762603382522,0.90714357,3416.1,3416.0,0.001]
[1762603382687,1.52449947,3416.1,3416.0,0.001]
[1762603382891,1.2299559,3416.1,3416.0,0.001]
[1762603383090,0.6126,3416.1,3416.0,0.001]
[1762603383337,3.26051147,3416.1,3416.0,0.001]
[1762603383555,8.15819802,3416.1,3416.0,0.001]
[1762603383764,4.82498592,3416.1,3416.0,0.001]
[1762603383927,4.0719128,3416.1,3416.0,0.001]
[1762603384130,3.66601547,3416.1,3416.0,0.001]
[1762603385452,2.8951719,3416.1,3416.0,0.001]
[1762603385820,6.59333024,3416.1,3416.0,0.001]
[1762603386025,6.228384,3416.1,3416.0,0.001]
[1762603386227,7.2654573,3416.1,3416.0,0.001]
[1762603386422,8.03393982,3416.1,3416.0,0.001]
[1762603388050,4.70072772,3416.1,3416.0,0.001]
[1762603388212,2.4896679,3416.1,3416.0,0.001]
[1762603388634,5.87248667,3416.1,3416.0,0.001]
[1762603389453,2.9451719,3416.1,3416.0,0.001]
[1762603389769,2.4896679,3416.1,3416.0,0.001]
[1762603393859,2.52281762,3416.1,3416.0,0.001]
[1762603394024,2.75724269,3416.1,3416.0,0.001]
[1762603394542,6.12665289,3416.1,3416.0,0.001]
[1762603394760,6.09006146,3416.1,3416.0,0.001]
[1762603395063,6.49595879,3416.1,3416.0,0.001]
[1762603395263,7.26444131,3416.1,3416.0,0.001]
[1762603395630,6.09006146,3416.1,3416.0,0.001]
[1762603395830,6.85751033,3416.1,3416.0,0.001]
[1762603396066,6.09006146,3416.1,3416.0,0.001]
[1762603396571,2.92851495,3414.7,3414.6,0.001]
[1762603396728,5.12333095,3414.7,3414.6,0.001]
[1762603396932,5.12333095,3414.7,3414.1,0.005]
[1762603396933,0.05,3414.2,3414.1,0.005]
[1762603397136,0.05,3414.2,3413.1,0.005]
[1762603397137,0.405504,3414.0,3413.1,0.005]
[1762603397366,0.3203,3413.2,3413.1,0.005]
[1762603397677,5.32121527,3413.2,3413.1,0.005]
[1762603397884,6.44798519,3413.2,3413.1,0.005]
[1762603398030,3.48156073,3413.2,3413.1,0.005]
[1762603398232,6.41136267,3413.2,3413.1,0.005]
[1762603398476,7.64613882,3413.2,3413.1,0.005]
[1762603398874,4.71633688,3413.2,3413.1,0.005]
[1762603399082,7.64613882,3413.2,3413.1,0.005]
[1762603399733,4.71633688,3413.2,3413.1,0.005]
[1762603400272,3.0756634,3413.2,3413.1,0.005]
[1762603400571,3.11228592,3413.2,3413.1,0.005]
[1762603400930,3.0756634,3413.2,3413.1,0.005]
[1762603401733,6.00546534,3413.2,3413.1,0.005]
[1762603401938,3.0756634,3413.2,3413.1,0.005]
[1762603402135,3.68119287,3413.2,3413.1,0.005]
[1762603403688,0.60552947,3413.2,3413.1,0.005]
[1762603403890,0.1314,3413.2,3413.1,0.005]
[1762603404201,0.03662145,3413.3,3413.1,1.1692]
[1762603404478,0.1925,3413.7,3413.2,2.92972161]
[1762603404651,0.1925,3413.7,3413.3,2.92966043]
[1762603404850,0.1925,3413.7,3413.1,0.1908]
[1762603405361,0.1925,3413.7,3413.1,3.12068019]
[1762603405535,1.34141591,3414.0,3413.4,2.929623]
[1762603405737,0.5263,3414.3,3413.4,2.929623]
[1762603405937,0.5263,3414.3,3413.1,0.1908]
[1762603405938,0.56742198,3414.2,3413.1,0.1908]
[1762603406143,0.6688,3414.4,3413.6,2.92944516]
[1762603406539,0.6688,3414.4,3413.1,0.1908]
[1762603406540,0.05,3413.6,3413.1,0.005]
[1762603406790,0.898004,3413.2,3413.1,0.005]
[1762603407473,0.4925,3413.2,3413.1,0.005]
[1762603408047,1.867612,3413.2,3413.1,0.005]
[1762603408248,1.9389732,3413.2,3413.1,0.005]
[1762603409472,1.4464732,3413.2,3413.1,0.4917]
[1762603409651,1.4464732,3413.2,3413.1,0.005]
[1762603410909,1.4464732,3413.2,3413.1,0.4917]
[1762603411407,1.4464732,3413.2,3413.1,0.4621]
[1762603411712,1.259712,3413.2,3413.1,0.005]
[1762603414122,1.71933064,3413.2,3413.1,0.4621]
[1762603414679,1.71933064,3413.2,3413.1,0.005]
[1762603414992,2.16185049,3413.2,3413.1,0.005]
[1762603415214,2.34141302,3413.2,3413.1,0.005]
[1762603416223,2.12522797,3413.2,3413.1,0.4621]
[1762603416373,1.71933064,3413.2,3413.1,1.1296]
[1762603416719,1.71933064,3413.2,3413.1,1.1306]
[1762603417642,1.71933064,3413.2,3413.1,0.4631]
[1762603418737,0.45961864,3413.2,3413.1,3.57588778]
[1762603418947,0.1464,3413.2,3413.1,1.82965334]
[1762603419152,0.1464,3413.2,3413.1,4.75954112]
[1762603420026,0.1464,3413.2,3413.1,4.06048778]
[1762603424713,0.002,3414.1,3414.0,2.9291154]
[1762603424908,0.002,3414.1,3414.0,3.3866154]
[1762603425355,0.002,3414.1,3414.0,3.8699154]
[1762603428418,0.002,3414.1,3414.0,3.8199154]
[1762603430521,0.002,3414.1,3414.0,4.49482763]
[1762603431475,0.002,3414.1,3414.0,4.50958236]
[1762603431619,1e-08,3414.2,3414.1,3.57352961]
[1762603431822,1e-08,3414.2,3414.1,4.05682961]
[1762603433740,0.002,3414.5,3414.4,2.92877225]
[1762603434069,0.002,3414.5,3414.4,4.33874727]
[1762603434273,1e-08,3415.0,3414.9,3.38584343]
[1762603434675,1e-08,3415.0,3414.9,3.86914343]
[1762603435664,1e-08,3415.0,3414.9,4.42104743]
[1762603436258,1e-08,3415.0,3414.9,5.68075943]
[1762603436487,1e-08,3415.0,3414.9,6.35567166]
[1762603444380,1e-08,3415.0,3414.9,12.20889691]
[1762603448284,1e-08,3415.0,3414.9,12.06249691]
[1762603451608,1e-08,3415.0,3414.9,12.06349691]
[1762603451810,0.00200001,3415.0,3414.9,12.06349691]
[1762603452384,1e-08,3415.4,3415.3,3.61000046]
[1762603452584,1e-08,3415.4,3415.3,5.82218748]
[1762603452787,1e-08,3415.4,3415.3,4.37957548]
[1762603453009,0.26230001,3415.4,3415.3,2.92800046]
[1762603454377,0.72940001,3415.4,3415.3,2.92800046]
[1762603457346,0.26230001,3415.4,3415.3,2.92800046]
[1762603458207,0.40790001,3415.4,3415.3,2.92800046]
[1762603459566,0.40790001,3415.4,3414.5,0.001]
[1762603459567,0.4669,3414.6,3413.1,0.006]
[1762603459851,0.76834026,3414.1,3413.1,0.006]
[1762603460164,0.61417069,3414.0,3413.5,2.92946445]
[1762603460440,0.78086178,3413.9,3413.4,2.92960073]
[1762603460602,0.61417069,3413.8,3413.5,2.92953492]
[1762603460800,1.08337069,3413.7,3413.6,2.92945863]
[1762603461242,1.08337069,3413.7,3413.1,0.006]